[Event "31st MPL National U18 Chess-ch 2022"]
[Site "Pollachi"]
[Date "2022.04.21"]
[Round "7.6"]
[White "Mahendra Teja Mekala"]
[Black "Harshad S"]
[Result "0-1"]
[ECO "A01"]
[WhiteElo "1875"]
[BlackElo "2328"]
[Annotator "TA"]
[PlyCount "74"]
[EventDate "2022.04.18"]
[EventCountry "IND"]
[SourceTitle "playchess.com"]
[Source "ChessBase"]
[SourceQuality "1"]
[TimeControl "5400+30"]

{[%evp 9,74,-20,-12,-17,-5,-37,-25,-35,-31,-36,-37,-36,-31,-27,-33,-46,-35,-53,-28,-41,-41,-41,-39,-43,-31,-40,-45,-42,-41,-48,-33,-121,-103,-156,-163,-163,-156,-276,-273,-353,-333,-371,-367,-330,-333,-364,-411,-404,-392,-539,-395,-635,-643,-512,-889,-909,-831,-932,-883,-983,-973,-921,-889,-1756,-1607,-897,0]} 1. b3 {[%emt 0:00:30]} e5 {[%emt 0:00:43]} 2. Bb2 {[%emt 0:00:22]} Nc6 {[%emt 0:00:10]} 3. e3 {[%emt 0:00:57]} Nf6 {[%emt 0:00:28]} 4. Bb5 {[%emt 0:01:42]} Bd6 {[%emt 0:00:28]} 5. Ne2 {[%emt 0:00:58]} a6 {[%emt 0:06:11]} 6. Bxc6 {[%emt 0:00:16] A01: Nimzowitsch-Larsen Opening.} dxc6 {[%emt 0:01:17]} 7. O-O {[%emt 0:00:21]} e4 {[%emt 1:24:43][%cal Od6h2]} 8. Ng3 {[%emt 0:04:55] Black has an edge.} h5 {[%emt 0:00:00] aiming for ...Ng4.} 9. Bxf6 {[%emt 0:01:08]} Qxf6 {[%emt 0:00:00]} 10. Nc3 {[%emt 0:00:08]} Bxg3 {[%emt 0:00:00]} 11. fxg3 {[%emt 0:00:31]} Qe5 {[%emt 0:00:00]} 12. d4 {[%emt 0:02:10]} exd3 $1 {[%emt 0:00:00]} 13. Qxd3 {[%emt 0:00:11] [#]} Be6 $146 {[%emt 0:00:00] [#] Hoping for ...Rd8.} (13... O-O {looks sharper.} 14. Rf4 Bg4 15. Raf1 Rfd8) ({Predecessor:} 13... O-O 14. Rf4 Bg4 15. Raf1 Rae8 16. Re4 Qa5 17. h3 Be6 18. Kh2 Qg5 19. a4 Qg6 {½-½ (37) Kudr,R (2272)-Cvak,R (2237) ICCF email 2014}) 14. Qd4 {[%emt 0:00:30]} Qxd4 {[%emt 0:00:00]} 15. exd4 {[%emt 0:00:06]} O-O-O {[%emt 0:00:00]} 16. Rad1 {[%emt 0:12:36]} f6 {[%emt 0:00:00]} 17. Ne2 {[%emt 0:19:18]} Bg4 $36 {[%emt 0:00:00][%mdl 2048] Black has good play.} 18. Rfe1 {[%emt 0:00:28]} Rhe8 {[%emt 0:00:00]} 19. Kf2 {[%emt 0:00:24]} c5 {[%emt 0:00:00] Strongly threatening ...cxd4.} 20. d5 {[%emt 0:06:10]} (20. c3 $15) 20... c6 {[%emt 0:00:00]} 21. c4 {[%emt 0:00:41]} (21. d6 $142) 21... cxd5 $17 {[%emt 0:00:00]} 22. cxd5 {[%emt 0:01:30]} Kc7 {[%emt 0:00:00]} 23. d6+ {[%emt 0:15:54]} (23. Rd2 $17) 23... Rxd6 $19 {[%emt 0:00:00]} 24. Rxd6 {[%emt 0:00:21]} Kxd6 {[%emt 0:00:00]} 25. Nc3 {[%emt 0:01:27]} Rxe1 {[%emt 0:00:00]} 26. Kxe1 {[%emt 0:00:09][%mdl 4096] Endgame KB-KN} Bd7 {[%emt 0:00:00]} 27. Kf2 {[%emt 0:03:09]} Ke5 {[%emt 0:00:00] Prevents Ne4.} 28. Ne2 {[%emt 0:00:11]} g5 {[%emt 0:00:00] Inhibits Nf4.} 29. h4 {[%emt 0:00:16]} Bc6 {[%emt 0:00:00]} 30. hxg5 $2 {[%emt 0:00:36] [#]} (30. Ng1) 30... fxg5 {[%emt 0:00:00] Black is clearly winning.} 31. Ng1 {[%emt 0:00:17]} b5 {[%emt 0:00:06]} (31... Kf5 $142 32. Ne2 Ke4) 32. Nh3 {[%emt 0:00:18]} Kf5 {[%emt 0:00:18]} 33. Kf1 {[%emt 0:03:23]} Be4 {[%emt 0:01:56]} 34. Nf2 {[%emt 0:00:22]} a5 {[%emt 0:02:53]} 35. Nd1 {[%emt 0:00:27]} Ke5 {[%emt 0:00:15]} 36. Ne3 {[%emt 0:00:21]} Kd4 {[%emt 0:00:10]} 37. Ke2 {[%emt 0:00:14]} Ke5 $2 {[%emt 0:09:22][%mdl 32768] Weighted Error Value: White=0.55/Black=0.07 (flawless) . Sensor Board Error (Ke4/e5)?} (37... c4 $19 38. bxc4 bxc4) 0-1

[Event "31st MPL National U18 Chess-ch 2022"]
[Site "Pollachi"]
[Date "2022.04.21"]
[Round "7.7"]
[White "Vengatesh Krishnan C"]
[Black "Manish Anto Cristiano F"]
[Result "1/2-1/2"]
[ECO "D45"]
[WhiteElo "1506"]
[BlackElo "2236"]
[Annotator "TA"]
[PlyCount "106"]
[EventDate "2022.04.18"]
[EventCountry "IND"]
[SourceTitle "playchess.com"]
[Source "ChessBase"]
[SourceQuality "1"]
[TimeControl "5400+30"]

{[%evp 13,106,-6,0,-8,-6,-10,16,1,9,0,26,31,31,25,31,25,22,19,13,23,27,20,21,40,31,12,14,0,0,0,0,0,0,0,0,0,0,-56,-42,-50,0,-42,0,0,0,0,0,0,12,8,16,8,8,8,10,8,13,0,25,34,27,0,8,8,8,8,31,0,0,0,0,0,14,22,26,36,60,0,0,0,0,0,65,0,6,-13,16,16,16,16,141,141,141,141,141]} 1. d4 {[%emt 0:00:05]} d5 {[%emt 0:00:08]} 2. c4 {[%emt 0:00:14]} c6 {[%emt 0:00:07]} 3. Nc3 {[%emt 0:00:12]} Nf6 {[%emt 0:00:09]} 4. Nf3 {[%emt 0:00:17]} e6 {[%emt 0:00:11][%cal Be7e6,Be6e5][%mdl 32]} 5. e3 {[%emt 0:00:50]} Nbd7 {[%emt 0:00:07]} 6. a3 {[%emt 0:01:09]} Bd6 {[%emt 0:04:20]} 7. Qc2 {[%emt 0:02:20]} O-O {[%emt 0:01:11]} 8. Bd3 {[%emt 0:01:56] D45: Semi-Slav: 5 e3.} dxc4 {[%emt 0:00:16]} 9. Bxc4 {[%emt 0:00:07]} e5 {[%emt 0:00:06]} 10. h3 {[%emt 0:06:41] The position is equal.} h6 {[%emt 0:16:46]} 11. O-O {[%emt 0:02:04]} Qc7 {[%emt 0:01:09] [#]} 12. e4 $146 {[%emt 0:14:25]} ({Predecessor:} 12. Ba2 Re8 13. dxe5 Nxe5 14. Nd4 Kh8 15. Bd2 Ng6 16. Rad1 Nh4 17. Bc1 a6 18. f4 Ng6 {1-0 (35) Iturrizaga Bonelli,E (2625)-Salinas Herrera,P (2498) Sao Paulo 2019}) 12... Re8 {[%emt 0:01:33]} 13. Be3 {[%emt 0:09:09]} exd4 {[%emt 0:05:13]} 14. Bxd4 {[%emt 0:04:39]} Ne5 {[%emt 0:03:26]} 15. Nxe5 {[%emt 0:07:41]} Bxe5 {[%emt 0:00:09]} 16. Rad1 {[%emt 0:06:10]} Be6 {[%emt 0:05:21]} 17. Bxe6 {[%emt 0:02:37]} Rxe6 {[%emt 0:00:09]} 18. Bxe5 {[%emt 0:08:17]} Qxe5 {[%emt 0:00:48]} 19. Rfe1 {[%emt 0:02:31]} Rae8 {[%emt 0:01:49]} 20. g3 {[%emt 0:04:08]} h5 {[%emt 0:11:15][%cal Bh6h5,Bh5h4,Bh4g3][%mdl 32]} 21. f4 {[%emt 0:06:34]} Qc5+ {[%emt 0:02:16]} 22. Qf2 {[%emt 0:00:30]} Qxf2+ {[%emt 0:00:59]} 23. Kxf2 {[%emt 0:00:08]} h4 {[%emt 0:00:14]} 24. e5 {[%emt 0:05:12]} Nh5 {[%emt 0:00:12]} 25. Rd7 {[%emt 0:01:53]} (25. Ne2 $11 hxg3+ 26. Kf3) 25... hxg3+ $15 {[%emt 0:02:44]} 26. Kf3 {[%emt 0:00:21]} g5 {[%emt 0:00:13]} (26... f6 $15 27. Ne4 (27. Rxb7 fxe5 28. f5 Rf6 $17) 27... fxe5) 27. fxg5 {[%emt 0:05:22]} Rxe5 {[%emt 0:00:34]} 28. Rxe5 {[%emt 0:01:06]} Rxe5 $11 {[%emt 0:00:03][%mdl 4096] Endgame KRN-KRN} 29. Kg4 {[%emt 0:00:54] Inhibits Rf5.} ({Don't blunder} 29. Rxb7 $2 Rf5+ 30. Kg4 {[#]} (30. Kg2 Rf2+ 31. Kg1 Nf4 32. Rb8+ Kg7) 30... g2 $1 $19) 29... f6 {[%emt 0:02:54]} 30. h4 {[%emt 0:03:27]} Re1 {[%emt 0:03:43] [#] And now ...g2 would win.} 31. Rd2 {[%emt 0:01:04]} ({But not} 31. Kxh5 g2 32. Kg6 Kf8 $17) 31... Ng7 {[%emt 0:04:14]} 32. gxf6 {[%emt 0:00:26]} Ne8 {[%emt 0:00:06]} 33. Kxg3 {[%emt 0:01:01] aiming for Rd7.} Nxf6 {[%emt 0:00:06]} 34. Re2 {[%emt 0:01:15]} Rg1+ {[%emt 0:00:24]} 35. Rg2 {[%emt 0:00:48]} Rc1 {[%emt 0:00:12]} 36. Kf4+ {[%emt 0:00:28]} Kf7 {[%emt 0:00:09]} 37. Kg5 {[%emt 0:00:43]} b5 {[%emt 0:00:24]} 38. Rf2 {[%emt 0:01:18]} Rg1+ {[%emt 0:00:25]} 39. Kf5 {[%emt 0:00:06]} Re1 {[%emt 0:01:05]} (39... Ng4 $5 {[%cal Rg4f2]} 40. Re2 a5 $11) 40. Re2 {[%emt 0:01:37]} Rh1 {[%emt 0:00:10]} 41. Kg5 {[%emt 0:00:28]} a5 {[%emt 0:01:29]} 42. Ne4 {[%emt 0:00:38]} Nd5 {[%emt 0:01:40]} 43. Nd6+ {[%emt 0:00:11]} Kg7 {[%emt 0:00:07]} 44. Nf5+ {[%emt 0:00:14]} Kh7 {[%emt 0:00:08] White must now prevent ...Rg1+.} 45. Ne7 {[%emt 0:00:37]} (45. Nd4 $14) 45... Rg1+ {[%emt 0:00:38]} 46. Kf5 {[%emt 0:00:07]} Rf1+ {[%emt 0:00:06]} 47. Kg5 {[%emt 0:00:56]} Nf4 {[%emt 0:00:07]} (47... Rg1+ $11 48. Kf5 Nxe7+ 49. Rxe7+ Kh6) 48. Rc2 {[%emt 0:00:13]} (48. Re3 $14) 48... c5 {[%emt 0:00:07]} 49. Nf5 {[%emt 0:00:41]} Ne6+ {[%emt 0:00:08]} 50. Kf6 {[%emt 0:00:16]} Rxf5+ {[%emt 0:01:13]} 51. Kxe6 {[%emt 0:00:06]} Rh5 {[%emt 0:00:04]} (51... Rf3 $1 $11 {remains equal.}) 52. Kd6 $16 {[%emt 0:00:18]} c4 {[%emt 0:00:13]} 53. Kc6 {[%emt 0:02:30]} Kg6 {[%emt 0:35:40] Weighted Error Value: White=0.10 (very precise) /Black=0.13 (very precise)} 1/2-1/2

[Event "31st MPL National U18 Chess-ch 2022"]
[Site "Pollachi"]
[Date "2022.04.21"]
[Round "7.8"]
[White "Piyush Kumar"]
[Black "Vignesh B"]
[Result "0-1"]
[ECO "B32"]
[WhiteElo "1535"]
[BlackElo "2249"]
[Annotator "TA"]
[PlyCount "69"]
[EventDate "2022.04.18"]
[EventCountry "IND"]
[SourceTitle "playchess.com"]
[Source "ChessBase"]
[SourceQuality "1"]
[TimeControl "5400+30"]

{[%evp 14,69,26,29,42,0,27,20,26,-8,-1,-4,-16,-6,34,0,0,0,22,0,0,0,-3,-12,6,13,154,146,139,147,172,-15,-15,-14,-20,-13,-39,-71,-27,-29,-38,-136,-79,-72,-89,-137,-146,-124,-85,-70,-25,-204,-202,-2373,-2128,-29986,-29987,-29979]} 1. e4 {[%emt 0:00:13]} c5 {[%emt 0:00:23]} 2. Nf3 {[%emt 0:00:44]} Nc6 {[%emt 1:31:07]} 3. d4 {[%emt 0:00:38]} cxd4 {[%emt 0:00:00]} 4. Nxd4 {[%emt 0:00:06]} e5 {[%emt 0:00:00]} 5. Nb5 {[%emt 0:02:11]} d6 {[%emt 0:01:30]} 6. N1c3 {[%emt 0:00:29]} a6 {[%emt 0:00:00]} 7. Na3 {[%emt 0:00:04]} Be6 {[%emt 0:00:00]} 8. Nc4 {[%emt 0:05:03]} Nf6 {[%emt 0:00:00] B32: Sicilian: Löwenthal and Kalashnikov Variations.} 9. Ne3 {[%emt 0:02:55]} (9. Bg5) 9... Nd4 {[%emt 0:00:00] [#]} 10. Bc4 $146 {[%emt 1:23:07]} ({Predecessor:} 10. g3 d5 11. Bg2 Bb4 12. O-O Bxc3 13. bxc3 dxe4 14. cxd4 exd4 15. Bb2 dxe3 16. fxe3 Qxd1 17. Rfxd1 {½-½ (38) Kovchan,A (2520)-Khader,S (2398) Kiev 2008}) 10... Rc8 {[%emt 0:00:00] The position is equal.} 11. Bb3 {[%emt 0:00:00]} Be7 {[%emt 0:00:00]} 12. O-O {[%emt 0:00:00]} O-O {[%emt 0:03:30]} 13. f3 {[%emt 0:01:30]} Qa5 {[%emt 0:00:00]} 14. Bd2 {[%emt 0:00:00]} (14. Ncd5 Qd8 15. c3 Nxb3 16. Qxb3) 14... Qc5 {[%emt 0:00:00]} 15. Kh1 {[%emt 0:01:00]} Rfd8 {[%emt 0:00:00]} 16. Bd5 {[%emt 0:00:00]} b5 {[%emt 0:00:00]} 17. a3 {[%emt 0:01:00]} Bf8 {[%emt 0:00:00]} 18. f4 {[%emt 0:00:00]} Bxd5 {[%emt 0:03:00]} (18... Re8 {with more complications.} 19. Rb1 Nc6 20. Qf3 exf4 21. Qxf4 Ne5) 19. exd5 {[%emt 0:00:00] Threatens to win with fxe5.} Re8 {[%emt 0:00:00]} (19... Qb6) (19... Qb6 $11 {remains equal.}) 20. fxe5 $16 {[%emt 0:00:00]} Rxe5 {[%emt 0:00:00] [#]} 21. Rxf6 $1 {[%emt 0:00:00][%mdl 512]} gxf6 {[%emt 0:00:00] [#]} 22. Ng4 $2 {[%emt 0:00:00]} (22. Qg4+ Kh8 23. b4) ({White should try} 22. Qg4+ $1 $18 Kh8 23. b4) 22... Bg7 $1 $11 {[%emt 0:00:00]} 23. Be3 {[%emt 0:00:00] [#]} Rxe3 {[%emt 0:00:00]} 24. Nxe3 {[%emt 0:00:00] Black must now prevent Ne4. Pair of Knights!} Re8 {[%emt 0:00:00] Inhibits Ne4.} 25. Nf1 {[%emt 0:00:00]} (25. Qd3) 25... Nf5 {[%emt 0:00:00] 0x0.0024a5c72a1adp-1022s more active pieces.} (25... f5) 26. Qg4 {[%emt 0:04:30]} Re5 {[%emt 0:00:00]} 27. Rd1 {[%emt 0:00:00] [#]} (27. Nd2) (27. Nd2 $15) 27... Ne3 {[%emt 0:00:00]} (27... Qf2 28. Ne4 Qxc2 29. Nxf6+ Kh8) (27... Qf2 $142 $1 28. Rc1 Kf8) 28. Nxe3 $17 {[%emt 0:00:00]} Qxe3 {[%emt 0:00:00]} 29. h3 {[%emt 0:00:00]} (29. Rf1) ({White should play} 29. Qh4) 29... f5 {[%emt 0:00:00][%cal Bf6f5,Bf5f4][%mdl 32]} 30. Qh4 {[%emt 0:00:00]} f4 {[%emt 0:00:00] aiming for ...f3.} (30... Re8 31. Rf1 Qd2) 31. Rf1 {[%emt 0:00:00] Inhibits f3.} h6 {[%emt 0:06:30]} (31... Re8) 32. Nd1 $2 {[%emt 0:00:00]} (32. Rxf4 Qc1+ 33. Kh2 Rg5) (32. Qxf4 Qxf4 33. Rxf4 Re1+ 34. Kh2 Be5) (32. Qd8+ Kh7 33. Qd7 (33. Qxd6 Qd2)) ({Wrong is} 32. Rxf4 $2 Qc1+ 33. Kh2 Rg5 $19) ({But not} 32. Qxf4 $2 Qxf4 33. Rxf4 Re1+ 34. Kh2 Be5 $19) (32. Qd8+ $1 $11 {and White is okay.} Kh7 33. Qd7 (33. Qxd6 f3 $15)) 32... Qg3 $19 {[%emt 0:00:00]} 33. Qd8+ {[%emt 0:00:00]} (33. Qxf4 Qxf4 34. Rxf4 Re1+ 35. Kh2 Be5) (33. Qxg3 fxg3 34. Nc3) ({Don't blunder} 33. Qxf4 $2 Qxf4 34. Rxf4 Re1+ 35. Kh2 Be5 $19) (33. Qxg3 fxg3 34. a4 (34. Nc3 $2 Re3 $19)) 33... Kh7 {[%emt 0:00:00] ( -> ...f3)} 34. Qb6 {[%emt 0:00:00]} Re2 {[%emt 0:00:00][%csl Ge2][%cal Rg3g2]} 35. Qg1 {[%emt 0:00:00] Black used his chance.  Weighted Error Value: White=0.89/Black=0.20 (precise)} 0-1

[Event "31st MPL National U18 Chess-ch 2022"]
[Site "Pollachi"]
[Date "2022.04.21"]
[Round "8.1"]
[White "Srihari L R"]
[Black "Soham Kamotra"]
[Result "1/2-1/2"]
[ECO "D78"]
[WhiteElo "2400"]
[BlackElo "2229"]
[Annotator "TA"]
[PlyCount "163"]
[EventDate "2022.04.18"]
[EventCountry "IND"]
[SourceTitle "playchess.com"]
[Source "ChessBase"]
[SourceQuality "1"]
[TimeControl "5400+30"]

{[%evp 16,163,50,40,60,62,65,76,78,73,80,68,71,81,98,102,97,65,72,73,63,-41,-35,-146,-139,-177,-170,-165,-164,-182,-160,-170,-154,-199,-194,-342,-343,-354,-355,-355,-348,-388,-388,-431,-431,-431,-431,-431,-431,-425,-425,-441,-434,-506,-472,-564,-529,-556,-529,-608,-589,-568,-502,-598,-472,-547,-530,-612,-612,-602,-602,-662,-650,-604,-549,-770,-762,-900,-838,-891,-808,-840,-648,-643,-180,-187,-180,-180,-156,-156,-134,-134,0,-156,-134,-160,-134,-156,-134,-134,-138,-156,-79,-79,-79,-79,-79,-79,-79,-79,-79,-79,-83,-83,-79,-79,-79,-87,-83,-83,-83,-83,-79,-79,-79,-87,-79,-87,-79,-80,-79,-80,-66,-81,-75,-87,-31,-80,-22,-45,-45,-51,-41,-80,-30,-80,-24,-22,-12,-30]} 1. d4 {[%emt 1:31:00]} Nf6 {[%emt 0:00:30]} 2. c4 {[%emt 0:00:00]} e6 {[%emt 0:00:18]} 3. g3 {[%emt 0:00:00]} d5 {[%emt 0:01:03]} 4. Bg2 {[%emt 0:00:00]} g6 {[%emt 0:00:07]} 5. Nf3 {[%emt 0:00:00]} Bg7 {[%emt 0:00:10]} 6. O-O {[%emt 0:00:00]} O-O {[%emt 0:00:07]} 7. Nc3 {[%emt 0:00:00]} Ne4 {[%emt 0:08:07]} 8. Bf4 {[%emt 0:00:00]} c6 {[%emt 0:11:14]} 9. Qb3 {[%emt 0:00:00]} b6 {[%emt 0:07:32] [#] D78: Fianchetto Grünfeld: 6 0-0 c6.} 10. cxd5 $146 {[%emt 0:00:00]} ({Predecessor:} 10. Rfd1 dxc4 11. Qxc4 Ba6 12. Qb3 Nxc3 13. Qxc3 Bxe2 14. Rd2 Ba6 15. Ne5 Bb7 16. Rc1 Qe7 17. Nxc6 Nxc6 18. Bxc6 {0-1 (27) Semenova,A-Donets,V (2182) St Petersburg 2004}) 10... Nxc3 {[%emt 0:00:23]} 11. Qxc3 {[%emt 0:00:00]} cxd5 {[%emt 0:00:35] White is better.} 12. Rfc1 {[%emt 0:00:00] &Bianco is more active.} Ba6 {[%emt 0:02:13]} 13. Bf1 {[%emt 0:00:00]} Qe7 {[%emt 0:11:08]} 14. Qc7 {[%emt 0:00:00]} Qxc7 {[%emt 0:06:16]} 15. Rxc7 {[%emt 0:00:00]} Bc4 {[%emt 0:01:25]} 16. b3 {[%emt 0:00:00]} Na6 {[%emt 0:00:34]} 17. Rb7 {[%emt 0:00:00]} Nc5 {[%emt 0:01:16]} 18. dxc5 {[%emt 0:00:00]} Ba6 $15 {[%emt 0:00:10]} 19. Rxa7 {[%emt 0:00:00]} Rxa7 $17 {[%emt 0:00:59]} 20. cxb6 {[%emt 0:00:00]} Rb7 $36 {[%emt 0:00:51][%mdl 2048] Black is really pushing.} 21. Rc1 {[%emt 0:00:00]} Rxb6 {[%emt 0:00:07]} 22. Rc7 {[%emt 0:00:00]} Rb7 {[%emt 0:08:04] Inhibits Ra7. White must now prevent ...Rxc7.} 23. Rc2 {[%emt 0:00:00]} Re8 {[%emt 0:02:48]} 24. Bd6 {[%emt 0:00:00]} Rb6 {[%emt 0:01:07][%cal Bb7b6,Bb6c6,Bc6c5][%mdl 32]} 25. Bc5 {[%emt 0:00:00]} (25. Bc7 {might work better.} Rc8 26. Ne1) 25... Rc8 $19 {[%emt 0:00:45]} 26. Ne1 {[%emt 0:00:00]} Rbc6 {[%emt 0:00:14]} 27. b4 {[%emt 0:00:00]} Bf8 {[%emt 0:00:09][%cal Rf8c5]} 28. e4 {[%emt 0:01:52]} Bxf1 {[%emt 0:02:42]} ({Don't blunder} 28... Bxc5 $2 29. exd5 exd5 30. Rxc5 Rxc5 31. Bxa6 $19) 29. Kxf1 {[%emt 0:00:13]} dxe4 {[%emt 0:01:26][%cal Rf8c5]} ({Not} 29... Bxc5 $2 30. exd5 exd5 31. bxc5 $19) 30. Re2 {[%emt 0:00:05]} Bxc5 {[%emt 0:00:06]} 31. bxc5 {[%emt 0:00:01]} Rxc5 {[%emt 0:00:29]} 32. Rxe4 {[%emt 0:00:01][%mdl 4096] Endgame KRR-KRN} Ra5 {[%emt 0:00:12]} 33. Nd3 {[%emt 0:01:50]} Rxa2 {[%emt 0:00:07]} 34. Rf4 {[%emt 0:00:10]} Kg7 {[%emt 0:00:30]} 35. h4 {[%emt 0:00:08]} Rd2 {[%emt 0:01:38]} 36. Ne5 {[%emt 0:00:09]} f6 {[%emt 0:00:35]} 37. Ng4 {[%emt 0:00:40]} e5 {[%emt 0:02:48]} 38. Rb4 {[%emt 0:00:05]} Rcd8 {[%emt 0:00:48]} 39. Rb6 {[%emt 0:00:57]} R2d6 {[%emt 0:00:08]} 40. Rb7+ {[%emt 0:00:07]} R8d7 {[%emt 0:00:01]} 41. Rb2 {[%emt 0:00:13]} h5 {[%emt 0:00:46]} 42. Ne3 {[%emt 0:00:04] Against Rd1+} Rd2 {[%emt 0:00:09]} 43. Rb6 {[%emt 0:00:11]} Ra2 {[%emt 0:00:10] Prevents Ra6.} 44. Nc4 {[%emt 0:00:05]} Kf7 {[%emt 0:02:52]} 45. Nd6+ {[%emt 0:00:06]} Ke7 {[%emt 0:00:05]} 46. Ne4 {[%emt 0:00:51]} f5 {[%emt 0:00:09]} 47. Ng5 {[%emt 0:00:03]} Rdd2 {[%emt 0:01:28]} 48. Nh3 {[%emt 0:00:48]} Rd6 {[%emt 0:00:15]} 49. Rb7+ {[%emt 0:00:06]} Ke6 $2 {[%emt 0:00:07]} (49... Rd7 50. Rxd7+ Kxd7) 50. Ng5+ {[%emt 0:00:13]} Kd5 {[%emt 0:00:06]} 51. Rb5+ {[%emt 0:00:21]} Kd4 {[%emt 0:00:22]} 52. Nf3+ {[%emt 0:00:05]} Ke4 {[%emt 0:00:23]} 53. Ng5+ {[%emt 0:00:04]} Kd4 {[%emt 0:04:11]} 54. Nf3+ {[%emt 0:00:09]} Kc3 {[%emt 0:03:24] [#] And now ...e4 would win.} 55. Rc5+ {[%emt 0:00:43]} Kb3 {[%emt 0:02:45]} 56. Rb5+ {[%emt 0:00:35]} Kc4 {[%emt 0:01:45]} 57. Rxe5 {[%emt 0:00:06]} Rf6 {[%emt 0:00:23]} 58. Ng5 {[%emt 0:02:00]} f4 {[%emt 0:00:47]} (58... Raa6 $142 59. Kg2 Rfd6) 59. Re4+ $17 {[%emt 0:00:11]} Kd5 {[%emt 0:02:42]} 60. gxf4 {[%emt 0:00:16]} Rc2 {[%emt 0:01:30]} 61. Re5+ {[%emt 0:00:57]} Kc6 {[%emt 0:00:02]} 62. Nh3 {[%emt 0:00:29]} Rc5 {[%emt 0:00:09] [#] aiming for ...Rxe5.} 63. Re8 {[%emt 0:01:07]} Kd7 {[%emt 0:00:06]} 64. Re4 {[%emt 0:00:45]} Re6 {[%emt 0:00:18]} 65. Ra4 {[%emt 0:00:05]} Rec6 {[%emt 0:00:12]} 66. Re4 {[%emt 0:01:32]} Ra5 {[%emt 0:00:35]} 67. Kg2 {[%emt 0:00:18]} Re6 {[%emt 0:00:03]} 68. Rb4 {[%emt 0:00:04]} Rc5 {[%emt 0:01:05]} 69. Ra4 {[%emt 0:00:17]} Rec6 {[%emt 0:02:00]} 70. Re4 {[%emt 0:00:06]} Rc8 {[%emt 0:00:52]} 71. Kg3 {[%emt 0:01:34]} Rd5 {[%emt 0:00:07]} 72. Re3 {[%emt 0:01:09]} Rc6 {[%emt 0:00:39]} 73. Ng5 {[%emt 0:01:28]} Rc1 {[%emt 0:00:49]} 74. Kg2 {[%emt 0:00:05]} Rdd1 {[%emt 0:00:20]} 75. Nh3 {[%emt 0:00:28][%cal Of4f5]} Re1 {[%emt 0:00:09]} ({Black should play} 75... Rc6 $17 76. Kg3 Ra6) 76. Ra3 {[%emt 0:00:14]} (76. Rg3 $1 $15 {might be stronger.}) 76... Ke7 {[%emt 0:00:54]} (76... Re6 $17 77. Ng5 Rb6) 77. Ra6 {[%emt 0:00:11]} Re6 {[%emt 0:01:25]} 78. Ra7+ {[%emt 0:00:05]} Kd8 {[%emt 0:00:24]} 79. Ra5 {[%emt 0:01:30]} Rd6 {[%emt 0:00:15]} (79... Rf6 $17 80. Ra7 Rd1) 80. Re5 {[%emt 0:00:33]} (80. f3 $11 {remains equal.}) 80... Rc7 {[%emt 0:00:06]} (80... Rf6 $17 81. Kg3 Kd7) 81. Ng5 $11 {[%emt 0:01:08]} Re7 {[%emt 0:00:17] Inhibits Ne6+.} 82. Ra5 {[%emt 0:00:16] Whites escaped into a draw.  Weighted Error Value: White=0.34/Black=0.08 (flawless)} 1/2-1/2

[Event "31st MPL National U18 Chess-ch 2022"]
[Site "Pollachi"]
[Date "2022.04.21"]
[Round "8.2"]
[White "Krishnan Ritvik"]
[Black "Ilamparthi A R"]
[Result "1/2-1/2"]
[ECO "B90"]
[WhiteElo "1761"]
[BlackElo "1969"]
[Annotator "TA"]
[PlyCount "62"]
[EventDate "2022.04.18"]
[EventCountry "IND"]
[SourceTitle "playchess.com"]
[Source "ChessBase"]
[SourceQuality "1"]
[TimeControl "5400+30"]

{[%evp 9,62,12,25,0,0,0,12,-1,33,22,30,16,13,2,4,6,5,5,8,8,8,-6,13,14,18,0,0,0,5,5,24,6,12,0,33,37,37,37,37,35,37,37,37,37,37,33,35,35,38,29,29,29,29,29,29]} 1. e4 {[%emt 0:00:03]} c5 {[%emt 0:00:04]} 2. Nf3 {[%emt 0:00:02]} d6 {[%emt 0:00:07]} 3. d4 {[%emt 1:31:55]} cxd4 {[%emt 0:00:07]} 4. Nxd4 {[%emt 0:00:00]} Nf6 {[%emt 0:00:07]} 5. Nc3 {[%emt 0:00:00]} a6 {[%emt 0:00:10]} 6. h4 {[%emt 0:00:00] B90: Sicilian Najdorf: Unusual White 6th moves, 6 Be3 Ng4 and 6 Be3 e5.} e5 {[%emt 0:00:51]} 7. Nb3 {[%emt 0:00:00]} Be6 {[%emt 0:00:16]} 8. f4 {[%emt 0:00:00] The position is equal.} exf4 {[%emt 0:00:26]} 9. Bxf4 {[%emt 0:00:00]} Nc6 {[%emt 0:00:12]} 10. Qd2 {[%emt 0:00:00]} d5 {[%emt 0:05:14]} 11. exd5 {[%emt 0:00:00]} (11. O-O-O {keeps more tension.} Bb4 12. Bg5 Nxe4 13. Qe3) 11... Nxd5 {[%emt 0:01:16]} 12. Nxd5 {[%emt 0:00:00]} Qxd5 {[%emt 0:01:34]} 13. Qxd5 {[%emt 0:00:00]} Bxd5 {[%emt 0:00:02]} 14. O-O-O {[%emt 0:00:00]} O-O-O {[%emt 0:04:58] [#]} 15. Bd3 $146 {[%emt 0:00:00]} ({Predecessor:} 15. g3 Bd6 16. Bxd6 Rxd6 17. Rh2 Rhd8 18. Rhd2 Kc7 19. Nd4 Be4 20. Nxc6 Rxc6 21. Bd3 Bxd3 22. Rxd3 Rxd3 23. Rxd3 {½-½ (47) Xu,Y (2522)-Wan,Y (2500) China 2018}) 15... Be6 {[%emt 0:07:39]} 16. Be4 {[%emt 0:00:00]} Be7 {[%emt 0:03:00]} 17. Bg5 {[%emt 0:00:00]} Rxd1+ {[%emt 0:06:29]} 18. Rxd1 {[%emt 0:00:00]} f6 {[%emt 0:13:11]} 19. Bf4 {[%emt 0:00:00]} g6 {[%emt 0:02:52]} 20. Re1 {[%emt 0:00:00] [#] Hoping for Bxc6.} Kd7 {[%emt 0:01:07]} ({Much less strong is} 20... Ne5 21. Bxe5 fxe5 {[#]} 22. Bxb7+ $1 {[%mdl 512]} Kxb7 23. Rxe5 $16) 21. Be3 {[%emt 0:00:00]} f5 {[%emt 0:09:22]} 22. Bxc6+ {[%emt 0:00:00]} bxc6 {[%emt 0:00:20]} 23. Nc5+ {[%emt 0:00:00]} Bxc5 {[%emt 0:00:15]} 24. Bxc5 $14 {[%emt 0:00:00][%mdl 4096] Endgame KRB-KRB} Re8 {[%emt 0:00:49]} 25. g3 {[%emt 0:00:00]} Bd5 {[%emt 0:04:31]} 26. Rxe8 {[%emt 0:00:00]} Kxe8 {[%emt 0:00:02] KB-KB} 27. Kd2 {[%emt 0:00:00]} Kd7 {[%emt 0:00:30]} 28. a3 {[%emt 0:12:30]} Be4 {[%emt 0:00:26]} 29. c3 {[%emt 0:00:00]} Ke6 {[%emt 0:00:18] White has an edge.} 30. a4 {[%emt 0:01:00]} Kd5 {[%emt 0:00:14]} 31. b4 {[%emt 0:00:00]} Ke5 {[%emt 0:01:50] Weighted Error Value: White=0.05 (flawless) /Black=0.06 (flawless)} 1/2-1/2